2CCN - Level 2 Cost Centre Name,,9CCN - Level 9 Cost Centre Name,9CCC - Level 9 Cost Centre Code,9AN - Level 9 Account Name,9AC - Level 9 Account Code,Date posted,Date of transaction,Merchant Name,Merchant City,Merchant State,Merchant Zip Code,Originating Account Name,Originating Account Number,MCC/SIC Code,MCC Description,Original Amount,Currency,Conversion Rate,Billed Amount,Debit Credit,Reference Number,Statement Cycle,Account Name
Gloucester City Council,23UE,Museum of Gloucester,MU002,Survey Fees/Materials,3933/C306,07/06/2021,03/06/2021,WWW.PRESERVATIONEQUIPM,01379647400,,IP22 4HQ,REDACTED,556*********9934,4225,"PUBLIC WAREHOUSING-FARM PROD,REFRIGERATE",181.62,Pound Sterling (826),1.000000000,181.62,Debit,55504431155174166961274,02/07/2021,GLOUCESTER CITY COUNCIL
Gloucester City Council,23UE,Museum of Gloucester,MU002,Survey Fees/Materials,3933/C306,11/06/2021,10/06/2021,WH SMITH,GLOUCESTER,GBR,GL1 1NZ,REDACTED,556*********9934,5994,NEWS DEALERS AND NEWSSTANDS,2.99,Pound Sterling (826),1.000000000,2.99,Debit,05130861162910064077374,02/07/2021,GLOUCESTER CITY COUNCIL
Gloucester City Council,23UE,Museum of Gloucester,MU002,Catering Provisions,3103,16/06/2021,15/06/2021,TESCO STORES 6819,GLOUCESTER,GBR,GL1 1TP,REDACTED,556*********9934,5411,"GROCERY STORES, SUPERMARKETS",1.15,Pound Sterling (826),1.000000000,1.15,Debit,05130861167910012701120,02/07/2021,GLOUCESTER CITY COUNCIL
Gloucester City Council,23UE,Museum of Gloucester,MU002,Cleaning Services & Materials,1500,17/06/2021,16/06/2021,ASDA SUPERSTORE,GLOUCESTER,GBR,GL1 1DS,REDACTED,556*********9934,5411,"GROCERY STORES, SUPERMARKETS",0.8,Pound Sterling (826),1.000000000,0.8,Debit,05130861168910061475252,02/07/2021,GLOUCESTER CITY COUNCIL
Gloucester City Council,23UE,Museum of Gloucester,MU002,General Supplies/Materials,3025,17/06/2021,16/06/2021,ASDA SUPERSTORE,GLOUCESTER,GBR,GL1 1DS,REDACTED,556*********9934,5411,"GROCERY STORES, SUPERMARKETS",6,Pound Sterling (826),1.000000000,6,Debit,05130861168910061475252,02/07/2021,GLOUCESTER CITY COUNCIL
Gloucester City Council,23UE,Museum of Gloucester,MU002,Catering Provisions,3103,17/06/2021,16/06/2021,BOOKER LIMITED GLOUCES,GLOUCESTER,GBR,GL4 3RT,REDACTED,556*********9934,5811,CATERERS,107.52,Pound Sterling (826),1.000000000,107.52,Debit,55184221167521689211611,02/07/2021,GLOUCESTER CITY COUNCIL
Gloucester City Council,23UE,Museum of Gloucester,MU002,Cleaning Services & Materials,1500,17/06/2021,16/06/2021,BOOKER LIMITED GLOUCES,GLOUCESTER,GBR,GL4 3RT,REDACTED,556*********9934,5811,CATERERS,75.37,Pound Sterling (826),1.000000000,75.37,Debit,55184221167521689211611,02/07/2021,GLOUCESTER CITY COUNCIL
Gloucester City Council,23UE,Museum of Gloucester,MU002,Exhibition Costs,3021,22/06/2021,21/06/2021,B & Q 1179,GLOUCESTER,,GL12SG,REDACTED,556*********9934,5200,HOME SUPPLY WAREHOUSE STORES,22.08,Pound Sterling (826),1.000000000,22.08,Debit,85481471173316609140259,02/07/2021,GLOUCESTER CITY COUNCIL
Gloucester City Council,23UE,Museum of Gloucester,MU002,Grant Payments,3901,22/06/2021,21/06/2021,ARGOS LTD,GLOUCESTER,,GL12SR,REDACTED,556*********9934,5310,DISCOUNT STORES,25.5,Pound Sterling (826),1.000000000,25.5,Debit,85481471173316645988232,02/07/2021,GLOUCESTER CITY COUNCIL
Gloucester City Council,23UE,Museum of Gloucester,MU002,Grant Payments,3901,22/06/2021,21/06/2021,ARGOS LTD,GLOUCESTER,,GL12SR,REDACTED,556*********9934,5310,DISCOUNT STORES,15,Pound Sterling (826),1.000000000,15,Debit,85481471173316645988240,02/07/2021,GLOUCESTER CITY COUNCIL
Gloucester City Council,23UE,Museum of Gloucester,MU002,Grant Payments,3901,23/06/2021,22/06/2021,GLOUCESTERSHIRE RESOUR,GLOUCESTER,GBR,GL1 4DF,REDACTED,556*********9934,8398,CHARITABLE AND SOCIAL SERVICE ORGANIZATIONS,197.22,Pound Sterling (826),1.000000000,197.22,Debit,15122621174002840560155,02/07/2021,GLOUCESTER CITY COUNCIL
Gloucester City Council,23UE,Museum of Gloucester,MU002,Building Repairs and Maintenance,1001,28/06/2021,25/06/2021,LYCO GROUP LTD,MILTON KEYNES,GBR,MK1 1ZR,REDACTED,556*********9934,5065,ELECTRICAL PARTS AND EQUIPMENT,57.47,Pound Sterling (826),1.000000000,57.47,Debit,15122621177000225970475,02/07/2021,GLOUCESTER CITY COUNCIL
Gloucester City Council,23UE,Museum of Gloucester,MU002,General Supplies/Materials,3025,28/06/2021,25/06/2021,POSTOFFICE SELFSERVICE,GLOUCESTER,,GL1 1AD,REDACTED,556*********9934,9402,POSTAGE STAMPS,4.25,Pound Sterling (826),1.000000000,4.25,Debit,55504431176252106239053,02/07/2021,GLOUCESTER CITY COUNCIL
Gloucester City Council,23UE,Museum of Gloucester,MU002,General Supplies/Materials,3025,28/06/2021,25/06/2021,POSTOFFICE SELFSERVICE,GLOUCESTER,,GL1 1AD,REDACTED,556*********9934,9402,POSTAGE STAMPS,3.2,Pound Sterling (826),1.000000000,3.2,Debit,55504431176252106238725,02/07/2021,GLOUCESTER CITY COUNCIL
Gloucester City Council,23UE,Museum of Gloucester,MU002,Catering Provisions,3103,28/06/2021,25/06/2021,TESCO STORES LTD 6498,GLOUCESTER,GBR,GL1 1SZ,REDACTED,556*********9934,5411,"GROCERY STORES, SUPERMARKETS",2.3,Pound Sterling (826),1.000000000,2.3,Debit,05130861177910013226737,02/07/2021,GLOUCESTER CITY COUNCIL
Gloucester City Council,23UE,Museum of Gloucester,MU002,Exhibition Costs,3021,01/07/2021,30/06/2021,CARD FACTORY,GLOUCESTER,GBR,GL1 1ND,REDACTED,556*********9934,5947,"GIFT, CARD, NOVELTY, AND SOUVENIR SHOPS",2,Pound Sterling (826),1.000000000,2,Debit,05130861182910014005281,02/07/2021,GLOUCESTER CITY COUNCIL
Gloucester City Council,23UE,Gloucester Life Museum,MU005,Archiving/Materials,3402/C306,02/07/2021,01/07/2021,Amazon.co.uk*203WV03G4,AMAZON.CO.UK,GBR,EC2A 2FA,REDACTED,556*********9934,5969,ALL OTHER DIRECT MARKETERS,175.96,Pound Sterling (826),1.000000000,175.96,Debit,52692011182200541075856,02/07/2021,GLOUCESTER CITY COUNCIL
Gloucester City Council,23UE,Gloucester Life Museum,MU005,Archiving/Materials,3402/C306,02/07/2021,01/07/2021,AMZNMktplace,amazon.co.uk,GBR,EC2A 2FA,REDACTED,556*********9934,5999,MISCELLANEOUS AND RETAIL STORES,95.96,Pound Sterling (826),1.000000000,95.96,Debit,52692011182200616737992,02/07/2021,GLOUCESTER CITY COUNCIL
Gloucester City Council,23UE,Managing Director & Directors,MT001,Professional Membership & Subscriptions,3403,18/06/2021,17/06/2021,WWW.SOLACE.ORG.UK,PONTEFRACT,,WF8 1NT,REDACTED,556*********1418,8699,MEMBERSHIP ORGANIZATIONS NOT ELSEWHERE CLASSIFIED,350,Pound Sterling (826),1.000000000,350,Debit,55541961169465000109921,02/07/2021,GLOUCESTER CITY COUNCIL
Gloucester City Council,23UE,Head of Cultural and Trading,MT003,Public Transport - Staff,2402,23/06/2021,22/06/2021,Trainline,London,GBR,1445,REDACTED,556*********1418,4112,PASSENGER RAILWAYS,65.3,Pound Sterling (826),1.000000000,65.3,Debit,85130081173124342385328,02/07/2021,GLOUCESTER CITY COUNCIL
Gloucester City Council,23UE,Head of Cultural and Trading,MT003,Conference Fees,0553,24/06/2021,22/06/2021,PREMIER INN44024080,COVENTRY,,CV1 4AH,REDACTED,556*********1418,3811,PREMIER INN,65.99,Pound Sterling (826),1.000000000,65.99,Debit,55541961175529000136929,02/07/2021,GLOUCESTER CITY COUNCIL
Gloucester City Council,23UE,Members Support,DS002,Public Transport - Staff,2402,25/06/2021,24/06/2021,Trainline,London,GBR,1445,REDACTED,556*********1418,4112,PASSENGER RAILWAYS,51.4,Pound Sterling (826),1.000000000,51.4,Debit,85130081175124463736356,02/07/2021,GLOUCESTER CITY COUNCIL
Gloucester City Council,23UE,Managing Director & Directors,MT001,Professional Membership & Subscriptions,3403,25/06/2021,24/06/2021,WWW.EMAP.COM,LONDON,,EC2A 4NQ,REDACTED,556*********1418,2741,MISCELLANEOUS PUBLISHING & PRINTING,332,Pound Sterling (826),1.000000000,332,Debit,55203341176003000512888,02/07/2021,GLOUCESTER CITY COUNCIL
Gloucester City Council,23UE,Countryside Unit,EP003,Vehicle Repairs and Maintenance,2103,24/06/2021,23/06/2021,HALFORDS 0749,GLOUCESTER,GBR,GL4 3EA,REDACTED,556*********6734,5940,BICYCLE SHOPS-SALES AND SERVICE,36.4,Pound Sterling (826),1.000000000,36.4,Debit,05130861175910049039726,02/07/2021,GLOUCESTER CITY COUNCIL
Gloucester City Council,23UE,Countryside Unit,EP003,Vehicle Repairs and Maintenance,2103,29/06/2021,28/06/2021,eBay O*03-07271-23569,Luxembourg,LUX,2449,REDACTED,556*********6734,5311,DEPARTMENT STORES,39.95,Pound Sterling (826),1.000000000,39.95,Debit,15265671179378039644944,02/07/2021,GLOUCESTER CITY COUNCIL
Gloucester City Council,23UE,Docks Complex - Services,AM006,Hospitality & Refreshments,3104,14/06/2021,11/06/2021,MCOLLS,GLOUCESTERSHI,GBR,GL1 2DN,REDACTED,556*********6128,5499,"MISC FOOD STORES-SPECIALITY,CONVENIENCE,MARKETS,VENDING MACHINES",1.29,Pound Sterling (826),1.000000000,1.29,Debit,05130861163910038486197,02/07/2021,GLOUCESTER CITY COUNCIL
Gloucester City Council,23UE,Docks Complex - Services,AM006,Building Repairs and Maintenance,1001,21/06/2021,19/06/2021,AMZNMktplace,amazon.co.uk,GBR,EC2A 2FA,REDACTED,556*********6128,5999,MISCELLANEOUS AND RETAIL STORES,6.49,Pound Sterling (826),1.000000000,6.49,Debit,52692011170200974315724,02/07/2021,GLOUCESTER CITY COUNCIL
Gloucester City Council,23UE,Docks Complex - Services,AM006,Hospitality & Refreshments,3104,22/06/2021,21/06/2021,PPOINT_*SOUTHGATE NEWS,GLOUCESTER,GBR,GL1 1TX,REDACTED,556*********6128,5499,"MISC FOOD STORES-SPECIALITY,CONVENIENCE,MARKETS,VENDING MACHINES",1,Pound Sterling (826),1.000000000,1,Debit,85125691172124974036029,02/07/2021,GLOUCESTER CITY COUNCIL
Gloucester City Council,23UE,Docks Complex - Services,AM006,Hospitality & Refreshments,3104,28/06/2021,25/06/2021,MCOLLS,GLOUCESTERSHI,GBR,GL1 2DN,REDACTED,556*********6128,5499,"MISC FOOD STORES-SPECIALITY,CONVENIENCE,MARKETS,VENDING MACHINES",1.29,Pound Sterling (826),1.000000000,1.29,Debit,05130861177910038474759,02/07/2021,GLOUCESTER CITY COUNCIL
Gloucester City Council,23UE,Museum of Gloucester,MU002,Equipment and Furniture,3001,07/06/2021,04/06/2021,WWW.SPARKSDIRECT.CO.UK,02072638007,,N19 5SE,REDACTED,556*********4253,5251,HARDWARE STORES,72.71,Pound Sterling (826),1.000000000,72.71,Debit,55504431155174167269115,02/07/2021,GLOUCESTER CITY COUNCIL
Gloucester City Council,23UE,Museum of Gloucester,MU002,Equipment and Furniture,3001,07/06/2021,04/06/2021,GEAR4MUSIC,08433300170,,YO30 4XF,REDACTED,556*********4253,5733,"MUSIC STORES-MUSICAL INSTRUMENTS, PIANOS, SHEET MUSIC",145.99,Pound Sterling (826),1.000000000,145.99,Debit,55504431156087372028218,02/07/2021,GLOUCESTER CITY COUNCIL
Gloucester City Council,23UE,Guildhall Events,GH002,Equipment and Furniture,3001,09/06/2021,08/06/2021,WILKO RETAIL LIMITED,GLOUCESTER,GBR,GL1 1SL,REDACTED,556*********4253,5399,MISCELLANEOUS GENERAL MERCHANDISE STORES,3.75,Pound Sterling (826),1.000000000,3.75,Debit,05272461160910013148309,02/07/2021,GLOUCESTER CITY COUNCIL
Gloucester City Council,23UE,Guildhall Events,GH002,Grant Payments,3901,21/06/2021,19/06/2021,AMZNMktplace,amazon.co.uk,GBR,EC2A 2FA,REDACTED,556*********4253,5999,MISCELLANEOUS AND RETAIL STORES,115.14,Pound Sterling (826),1.000000000,115.14,Debit,52692011170200957429948,02/07/2021,GLOUCESTER CITY COUNCIL
Gloucester City Council,23UE,Blackfriars,GH010,Advertising & Publicity,3404,24/06/2021,23/06/2021,123 REG LTD,03454502310,,UB3 1HA,REDACTED,556*********4253,4816,COMPUTER NETWORK/INFORMATION SERVICES,14.39,Pound Sterling (826),1.000000000,14.39,Debit,55203341175031000006792,02/07/2021,GLOUCESTER CITY COUNCIL
Gloucester City Council,23UE,Guildhall Events,GH002,Grant Payments,3901,30/06/2021,29/06/2021,Amazon.co.uk*2002I8444,AMAZON.CO.UK,GBR,EC2A 2FA,REDACTED,556*********4253,5969,ALL OTHER DIRECT MARKETERS,99.47,Pound Sterling (826),1.000000000,99.47,Debit,52692011180200049227324,02/07/2021,GLOUCESTER CITY COUNCIL
Gloucester City Council,23UE,Guildhall Events,GH002,Events,3070,01/07/2021,30/06/2021,CURRYS ONLINE,HEMEL HEMPSTE,GBR,HP2 7JG,REDACTED,556*********4253,5732,ELECTRONIC SALES,89.99,Pound Sterling (826),1.000000000,89.99,Debit,05130861182910047083388,02/07/2021,GLOUCESTER CITY COUNCIL
Gloucester City Council,23UE,Contact Centre,CT001,CRB Checks,0533,17/06/2021,16/06/2021,DISCLOSURE AND BARRING,LIVERPOOL,GBR,L3 1QY,REDACTED,556*********3063,9399,GOVERNMENT SERVICES NOT ELSEWHERE CLASSIFIED,23,Pound Sterling (826),1.000000000,23,Debit,05272471168910009165490,02/07/2021,GLOUCESTER CITY COUNCIL
Gloucester City Council,23UE,Docks Complex - Services,AM006,Professional Membership & Subscriptions,3403,22/06/2021,18/06/2021,TVLICENSING.CO.UK,3007906071,,BS1 6AB,REDACTED,556*********3063,7392,"MANAGEMENT, CONSULTING AND PUBLIC RELATIONS SERVICES",159,Pound Sterling (826),1.000000000,159,Debit,85481471172316583420207,02/07/2021,GLOUCESTER CITY COUNCIL
Gloucester City Council,23UE,Guildhall Events,GH002,Advertising & Publicity,3404,03/06/2021,02/06/2021,WWW.INSTANTPRINT.C,01709 382202,,S63 5DR,REDACTED,556*********1585,7338,QUICK-COPY AND REPRODUCTION SERVICES,44.99,Pound Sterling (826),1.000000000,44.99,Debit,85481471154311821223911,02/07/2021,GLOUCESTER CITY COUNCIL
Gloucester City Council,23UE,Guildhall Bar and Caf�,GH005,Catering Provisions,3103,04/06/2021,03/06/2021,ICELAND,GLOUCESTER,GBR,GL1 1SA,REDACTED,556*********1585,5411,"GROCERY STORES, SUPERMARKETS",1.15,Pound Sterling (826),1.000000000,1.15,Debit,05130861155910035274562,02/07/2021,GLOUCESTER CITY COUNCIL
Gloucester City Council,23UE,Gloucester Guildhall,GH001,Cleaning Services & Materials,1500,10/06/2021,09/06/2021,AMZNMKTPLACE AMAZON.CO,AMAZON.CO.UK,GBR,EC2A 2FA,REDACTED,556*********1585,5999,MISCELLANEOUS AND RETAIL STORES,22.95,Pound Sterling (826),1.000000000,22.95,Debit,85389241160122572583482,02/07/2021,GLOUCESTER CITY COUNCIL
Gloucester City Council,23UE,Blackfriars,GH010,Catering Provisions,3103,10/06/2021,09/06/2021,ASDA SUPERSTORE,GLOUCESTER,GBR,GL1 1DS,REDACTED,556*********1585,5411,"GROCERY STORES, SUPERMARKETS",8.05,Pound Sterling (826),1.000000000,8.05,Debit,05130861161910056448824,02/07/2021,GLOUCESTER CITY COUNCIL
Gloucester City Council,23UE,Guildhall Bar and Caf�,GH005,Equipment and Furniture,3001,11/06/2021,10/06/2021,AMZNMKTPLACE AMAZON.CO,AMAZON.CO.UK,GBR,EC2A 2FA,REDACTED,556*********1585,5999,MISCELLANEOUS AND RETAIL STORES,23.99,Pound Sterling (826),1.000000000,23.99,Debit,85389241161122583744684,02/07/2021,GLOUCESTER CITY COUNCIL
Gloucester City Council,23UE,Blackfriars,GH010,Advertising & Publicity,3404,11/06/2021,10/06/2021,PAYPAL *ZEFORASRLGR,35314369001,GBR,TW91EH,REDACTED,556*********1585,7299,MISCELLANEOUS PERSONAL SERVICES,40.49,Pound Sterling (826),1.000000000,40.49,Debit,85130081161122635447577,02/07/2021,GLOUCESTER CITY COUNCIL
Gloucester City Council,23UE,Blackfriars,GH010,General Supplies/Materials,3025,11/06/2021,11/06/2021,AMZNMktplace,amazon.co.uk,GBR,EC2A 2FA,REDACTED,556*********1585,5999,MISCELLANEOUS AND RETAIL STORES,26.07,Pound Sterling (826),1.000000000,26.07,Debit,52692011162200505567728,02/07/2021,GLOUCESTER CITY COUNCIL
Gloucester City Council,23UE,Blackfriars,GH010,General Supplies/Materials,3025,14/06/2021,11/06/2021,POSTOFFICE SELFSERVICE,GLOUCESTER,,GL1 1AD,REDACTED,556*********1585,9402,POSTAGE STAMPS,8.95,Pound Sterling (826),1.000000000,8.95,Debit,55504431162252114814539,02/07/2021,GLOUCESTER CITY COUNCIL
Gloucester City Council,23UE,Blackfriars,GH010,Advertising & Publicity,3404,14/06/2021,13/06/2021,FACEBK *98S2L4XEX2,fb.me/ads,IRL,UNKNOWN,REDACTED,556*********1585,7311,ADVERTISING SERVICES,40,Pound Sterling (826),1.000000000,40,Debit,55204721164200307868130,02/07/2021,GLOUCESTER CITY COUNCIL
Gloucester City Council,23UE,Guildhall Bar and Caf�,GH005,Catering Provisions,3103,16/06/2021,15/06/2021,ICELAND,GLOUCESTER,GBR,GL1 1SA,REDACTED,556*********1585,5411,"GROCERY STORES, SUPERMARKETS",11.2,Pound Sterling (826),1.000000000,11.2,Debit,05130861167910035298492,02/07/2021,GLOUCESTER CITY COUNCIL
Gloucester City Council,23UE,Guildhall Events,GH002,Advertising & Publicity,3404,18/06/2021,18/06/2021,MailChimp,30308,GA,30308,REDACTED,556*********1585,5818,DIGITAL GOODS - MULTI-CATEGORY,45.4,Pound Sterling (826),1.000000000,45.4,Debit,15270211169000077597541,02/07/2021,GLOUCESTER CITY COUNCIL
Gloucester City Council,23UE,Blackfriars,GH010,Catering Provisions,3103,21/06/2021,18/06/2021,ASDA SUPERSTORE,GLOUCESTER,GBR,GL1 1DS,REDACTED,556*********1585,5411,"GROCERY STORES, SUPERMARKETS",9,Pound Sterling (826),1.000000000,9,Debit,05130861170910065602527,02/07/2021,GLOUCESTER CITY COUNCIL
Gloucester City Council,23UE,Guildhall Bar and Caf�,GH005,Equipment and Furniture,3001,23/06/2021,22/06/2021,Amazon.co.uk*282YS8S94,AMAZON.CO.UK,GBR,EC2A 2FA,REDACTED,556*********1585,5969,ALL OTHER DIRECT MARKETERS,79.98,Pound Sterling (826),1.000000000,79.98,Debit,52692011173200001567005,02/07/2021,GLOUCESTER CITY COUNCIL
Gloucester City Council,23UE,Guildhall Bar and Caf�,GH005,Equipment and Furniture,3001,23/06/2021,23/06/2021,Amazon.co.uk*286OI0ST4,AMAZON.CO.UK,GBR,EC2A 2FA,REDACTED,556*********1585,5969,ALL OTHER DIRECT MARKETERS,79.98,Pound Sterling (826),1.000000000,79.98,Debit,52692011174200015697102,02/07/2021,GLOUCESTER CITY COUNCIL
Gloucester City Council,23UE,Blackfriars,GH010,Catering Provisions,3103,24/06/2021,23/06/2021,TESCO STORES 6819,GLOUCESTER,GBR,GL1 1TP,REDACTED,556*********1585,5411,"GROCERY STORES, SUPERMARKETS",5.3,Pound Sterling (826),1.000000000,5.3,Debit,05130861175910015859073,02/07/2021,GLOUCESTER CITY COUNCIL
Gloucester City Council,23UE,Guildhall Events,GH002,Advertising & Publicity,3404,25/06/2021,24/06/2021,WWW.INSTANTPRINT.C,01709 382202,,S63 5DR,REDACTED,556*********1585,7338,QUICK-COPY AND REPRODUCTION SERVICES,45.99,Pound Sterling (826),1.000000000,45.99,Debit,85481471176317417501754,02/07/2021,GLOUCESTER CITY COUNCIL
Gloucester City Council,23UE,Blackfriars,GH010,Advertising & Publicity,3404,01/07/2021,30/06/2021,FACEBK *TE4QF47FX2,fb.me/ads,IRL,UNKNOWN,REDACTED,556*********1585,7311,ADVERTISING SERVICES,5,Pound Sterling (826),1.000000000,5,Debit,55204721181200271965911,02/07/2021,GLOUCESTER CITY COUNCIL
Gloucester City Council,23UE,Blackfriars,GH010,Advertising & Publicity,3404,02/07/2021,01/07/2021,ROCK MY WEDDING,LONDON,LND,SW13 9JJ,REDACTED,556*********1585,8699,MEMBERSHIP ORGANIZATIONS NOT ELSEWHERE CLASSIFIED,12,Pound Sterling (826),1.000000000,12,Debit,85383901182000003338792,02/07/2021,GLOUCESTER CITY COUNCIL
Gloucester City Council,23UE,Crematorium,CC003,Equipment and Furniture,3001,08/06/2021,07/06/2021,PROPER JOB - GLOUCESTE,GLOUCESTER,GBR,GL4 3EA,REDACTED,556*********0923,5251,HARDWARE STORES,2,Pound Sterling (826),1.000000000,2,Debit,05272461159910003339325,02/07/2021,GLOUCESTER CITY COUNCIL
Gloucester City Council,23UE,Crematorium,CC003,Equipment and Furniture,3001,10/06/2021,09/06/2021,B&M 448 - CONEY HILL,CONEY HILL,GBR,GL4 3BY,REDACTED,556*********0923,5399,MISCELLANEOUS GENERAL MERCHANDISE STORES,8.97,Pound Sterling (826),1.000000000,8.97,Debit,05272461161910003595666,02/07/2021,GLOUCESTER CITY COUNCIL
Gloucester City Council,23UE,Crematorium,CC003,Laundry Costs,3060,11/06/2021,10/06/2021,SLATER MENSWEAR LTD,CHELTENHAM,GBR,GL50 1LN,REDACTED,556*********0923,5311,DEPARTMENT STORES,164,Pound Sterling (826),1.000000000,164,Debit,05272471162910033230795,02/07/2021,GLOUCESTER CITY COUNCIL
Gloucester City Council,23UE,Crematorium,CC003,Laundry Costs,3060,11/06/2021,10/06/2021,SLATER MENSWEAR LTD,CHELTENHAM,GBR,GL50 1LN,REDACTED,556*********0923,5311,DEPARTMENT STORES,39,Pound Sterling (826),1.000000000,39,Debit,05272471162910033230829,02/07/2021,GLOUCESTER CITY COUNCIL
Gloucester City Council,23UE,Crematorium,CC003,Laundry Costs,3060,11/06/2021,10/06/2021,SLATER MENSWEAR LTD,CHELTENHAM,GBR,GL50 1LN,REDACTED,556*********0923,5311,DEPARTMENT STORES,190,Pound Sterling (826),1.000000000,190,Debit,05272471162910033234920,02/07/2021,GLOUCESTER CITY COUNCIL
Gloucester City Council,23UE,Crematorium,CC003,Equipment and Furniture,3001,15/06/2021,14/06/2021,PROPER JOB - GLOUCESTE,GLOUCESTER,GBR,GL4 3EA,REDACTED,556*********0923,5251,HARDWARE STORES,2.99,Pound Sterling (826),1.000000000,2.99,Debit,05272461166910003364902,02/07/2021,GLOUCESTER CITY COUNCIL
Gloucester City Council,23UE,Crematorium,CC003,Equipment and Furniture,3001,16/06/2021,15/06/2021,PROPER JOB - GLOUCESTE,GLOUCESTER,GBR,GL4 3EA,REDACTED,556*********0923,5251,HARDWARE STORES,2.5,Pound Sterling (826),1.000000000,2.5,Debit,05272461167910003406918,02/07/2021,GLOUCESTER CITY COUNCIL
Gloucester City Council,23UE,Crematorium,CC003,Grounds Maintenance,1100,22/06/2021,21/06/2021,BROCKWORTH GARDEN CENT,GLOUCESTER,,GL3 4PU,REDACTED,556*********0923,5261,"NURSERIES, LAWN AND GARDEN SUPPLY STORES",124.95,Pound Sterling (826),1.000000000,124.95,Debit,55504431172071203367318,02/07/2021,GLOUCESTER CITY COUNCIL
Gloucester City Council,23UE,Crematorium,CC003,Equipment and Furniture,3001,01/07/2021,30/06/2021,B&M 448 - CONEY HILL,CONEY HILL,GBR,GL4 3BY,REDACTED,556*********0923,5399,MISCELLANEOUS GENERAL MERCHANDISE STORES,23.26,Pound Sterling (826),1.000000000,23.26,Debit,05272461182910013180397,02/07/2021,GLOUCESTER CITY COUNCIL
Gloucester City Council,23UE,Crematorium,CC003,Equipment and Furniture,3001,01/07/2021,30/06/2021,THE RANGE,GLOUCESTER,,GL4 3BY,REDACTED,556*********0923,5311,DEPARTMENT STORES,10.87,Pound Sterling (826),1.000000000,10.87,Debit,85481471182318906222441,02/07/2021,GLOUCESTER CITY COUNCIL
Gloucester City Council,23UE,Planning Policy,PL004,"ICT Software, Licences & Support",3521,21/06/2021,19/06/2021,ZOOM.US 888-799-9666,SAN JOSE,CA,95113,REDACTED,556*********4450,4814,"TELECOMMUNICATION SERV.INCLUD. LOCAL/L.DIST. CALLS,CR CARDCALLS",11.99,Pound Sterling (826),1.000000000,11.99,Debit,82711161170000010436659,02/07/2021,GLOUCESTER CITY COUNCIL
Gloucester City Council,23UE,Museum of Gloucester,MU002,Equipment and Furniture,3001,18/06/2021,17/06/2021,Forest Upcycling Proje,Cinderford,GBR,GL14 2PD,REDACTED,556*********9780,7641,"REUPHOLSTERY AND FURNITURE REPAIR, FURNITURE REFINISHING",98,Pound Sterling (826),1.000000000,98,Debit,05371341168322921119974,02/07/2021,GLOUCESTER CITY COUNCIL
Gloucester City Council,23UE,Museum of Gloucester,MU002,Grant Payments,3901,21/06/2021,18/06/2021,WWW.INSTANTPRINT.C,01709 382202,,S63 5DR,REDACTED,556*********9780,7338,QUICK-COPY AND REPRODUCTION SERVICES,81,Pound Sterling (826),1.000000000,81,Debit,85481471170315896785712,02/07/2021,GLOUCESTER CITY COUNCIL
Gloucester City Council,23UE,Museum of Gloucester,MU002,Grant Payments,3901,22/06/2021,21/06/2021,AMZNMktplace,amazon.co.uk,GBR,EC2A 2FA,REDACTED,556*********9780,5999,MISCELLANEOUS AND RETAIL STORES,6.5,Pound Sterling (826),1.000000000,6.5,Debit,52692011172200515684248,02/07/2021,GLOUCESTER CITY COUNCIL
Gloucester City Council,23UE,Museum of Gloucester,MU002,Grant Payments,3901,01/07/2021,30/06/2021,TOWN AND CITY GIFT CAR,PERTH,,PH1 5UT,REDACTED,556*********9780,5947,"GIFT, CARD, NOVELTY, AND SOUVENIR SHOPS",402.49,Pound Sterling (826),1.000000000,402.49,Debit,85481471181318829309078,02/07/2021,GLOUCESTER CITY COUNCIL
Gloucester City Council,23UE,Museum of Gloucester,MU002,Grant Payments,3901,02/07/2021,01/07/2021,BLANKPRODUCTS LTD,0441217481780,GBR,B356AN,REDACTED,556*********9780,5999,MISCELLANEOUS AND RETAIL STORES,344.5,Pound Sterling (826),1.000000000,344.5,Debit,85130081182125901708932,02/07/2021,GLOUCESTER CITY COUNCIL
Gloucester City Council,23UE,Housing Services,HS001,B&B Payments,1303,07/06/2021,02/06/2021,TRAVELODGE GB0809,GLOUCESTER,,GL1 5SF,REDACTED,556*********3914,3615,TRAVELODGE,91.49,Pound Sterling (826),1.000000000,91.49,Debit,55504431155110282930892,02/07/2021,GLOUCESTER CITY COUNCIL
Gloucester City Council,23UE,Housing Services,HS001,B&B Payments,1303,07/06/2021,02/06/2021,TRAVELODGE GB0809,GLOUCESTER,,GL1 5SF,REDACTED,556*********3914,3615,TRAVELODGE,91.49,Pound Sterling (826),1.000000000,91.49,Debit,55504431155110282930884,02/07/2021,GLOUCESTER CITY COUNCIL
Gloucester City Council,23UE,Housing Services,HS001,B&B Payments,1303,07/06/2021,03/06/2021,TRAVELODGE GB0809,GLOUCESTER,,GL1 5SF,REDACTED,556*********3914,3615,TRAVELODGE,650.86,Pound Sterling (826),1.000000000,650.86,Debit,55504431156110203770483,02/07/2021,GLOUCESTER CITY COUNCIL
Gloucester City Council,23UE,Housing Services,HS001,B&B Payments,1303,07/06/2021,04/06/2021,TRAVELODGE GB0809,GLOUCESTER,,GL1 5SF,REDACTED,556*********3914,3615,TRAVELODGE,149.47,Pound Sterling (826),1.000000000,149.47,Debit,55504431157110219488780,02/07/2021,GLOUCESTER CITY COUNCIL
Gloucester City Council,23UE,Housing Services,HS001,B&B Payments,1303,07/06/2021,04/06/2021,TRAVELODGE GB0821,CHELTENHAM,,GL51 6TA,REDACTED,556*********3914,3615,TRAVELODGE,392.93,Pound Sterling (826),1.000000000,392.93,Debit,55504431157110219802626,02/07/2021,GLOUCESTER CITY COUNCIL
Gloucester City Council,23UE,Housing Services,HS001,B&B Payments,1303,08/06/2021,07/06/2021,TRAVELODGE GB0000,THAME,,OX9 3AT,REDACTED,556*********3914,3615,TRAVELODGE,49.96,Pound Sterling (826),1.000000000,49.96,Debit,55504431158298186599280,02/07/2021,GLOUCESTER CITY COUNCIL
Gloucester City Council,23UE,Housing Services,HS001,CRB Checks,0533,09/06/2021,08/06/2021,DISCLOSURE AND BARRING,LIVERPOOL,GBR,L3 1QY,REDACTED,556*********3914,9399,GOVERNMENT SERVICES NOT ELSEWHERE CLASSIFIED,23,Pound Sterling (826),1.000000000,23,Debit,05272471160910012174172,02/07/2021,GLOUCESTER CITY COUNCIL
Gloucester City Council,23UE,Housing Services,HS001,B&B Payments,1303,11/06/2021,08/06/2021,TRAVELODGE GB0809,GLOUCESTER,,GL1 5SF,REDACTED,556*********3914,3615,TRAVELODGE,54.49,Pound Sterling (826),1.000000000,54.49,Debit,55504431161110298969266,02/07/2021,GLOUCESTER CITY COUNCIL
Gloucester City Council,23UE,Housing Services,HS001,B&B Payments,1303,11/06/2021,08/06/2021,TRAVELODGE GB0809,GLOUCESTER,,GL1 5SF,REDACTED,556*********3914,3615,TRAVELODGE,672.36,Pound Sterling (826),1.000000000,672.36,Debit,55504431161110298969274,02/07/2021,GLOUCESTER CITY COUNCIL
Gloucester City Council,23UE,Housing Services,HS001,B&B Payments,1303,14/06/2021,09/06/2021,TRAVELODGE GB0809,GLOUCESTER,,GL1 5SF,REDACTED,556*********3914,3615,TRAVELODGE,93.48,Pound Sterling (826),1.000000000,93.48,Debit,55504431162110221292603,02/07/2021,GLOUCESTER CITY COUNCIL
Gloucester City Council,23UE,Housing Services,HS001,B&B Payments,1303,14/06/2021,09/06/2021,TRAVELODGE GB0809,GLOUCESTER,,GL1 5SF,REDACTED,556*********3914,3615,TRAVELODGE,312.93,Pound Sterling (826),1.000000000,312.93,Debit,55504431162110221292611,02/07/2021,GLOUCESTER CITY COUNCIL
Gloucester City Council,23UE,Housing Services,HS001,B&B Payments,1303,14/06/2021,11/06/2021,TRAVELODGE GB0821,CHELTENHAM,,GL51 6TA,REDACTED,556*********3914,3615,TRAVELODGE,675.86,Pound Sterling (826),1.000000000,675.86,Debit,55504431164110257556382,02/07/2021,GLOUCESTER CITY COUNCIL
Gloucester City Council,23UE,Housing Services,HS001,CRB Checks,0533,16/06/2021,15/06/2021,DISCLOSURE AND BARRING,LIVERPOOL,GBR,L3 1QY,REDACTED,556*********3914,9399,GOVERNMENT SERVICES NOT ELSEWHERE CLASSIFIED,23,Pound Sterling (826),1.000000000,23,Debit,05272471167910012184638,02/07/2021,GLOUCESTER CITY COUNCIL
Gloucester City Council,23UE,Housing Services,HS001,B&B Payments,1303,21/06/2021,16/06/2021,TRAVELODGE GB0809,GLOUCESTER,,GL1 5SF,REDACTED,556*********3914,3615,TRAVELODGE,387.43,Pound Sterling (826),1.000000000,387.43,Debit,55504431169110257925467,02/07/2021,GLOUCESTER CITY COUNCIL
Gloucester City Council,23UE,Housing Services,HS001,B&B Payments,1303,21/06/2021,18/06/2021,IBIS GLOUCESTER,GLOUCESTER,GBR,GL43DG,REDACTED,556*********3914,3533,HOTEL IBIS,300,Pound Sterling (826),1.000000000,300,Debit,55184221170551707733416,02/07/2021,GLOUCESTER CITY COUNCIL
Gloucester City Council,23UE,Housing Services,HS001,B&B Payments,1303,25/06/2021,22/06/2021,TRAVELODGE GB0809,GLOUCESTER,,GL1 5SF,REDACTED,556*********3914,3615,TRAVELODGE,418.44,Pound Sterling (826),1.000000000,418.44,Debit,55504431175110270690751,02/07/2021,GLOUCESTER CITY COUNCIL
Gloucester City Council,23UE,Housing Services,HS001,B&B Payments,1303,25/06/2021,24/06/2021,IBIS GLOUCESTER,GLOUCESTER,GBR,GL43DG,REDACTED,556*********3914,3533,HOTEL IBIS,445,Pound Sterling (826),1.000000000,445,Debit,55184221176551764479568,02/07/2021,GLOUCESTER CITY COUNCIL
Gloucester City Council,23UE,Housing Services,HS001,CRB Checks,0533,30/06/2021,29/06/2021,DISCLOSURE AND BARRING,LIVERPOOL,GBR,L3 1QY,REDACTED,556*********3914,9399,GOVERNMENT SERVICES NOT ELSEWHERE CLASSIFIED,23,Pound Sterling (826),1.000000000,23,Debit,05272471181910012177527,02/07/2021,GLOUCESTER CITY COUNCIL
Gloucester City Council,23UE,Destination Marketing,TI001,Advertising & Publicity,3404,04/06/2021,03/06/2021,FACEBK AJ3D753DP2,fb.me/ads,IRL,2,REDACTED,556*********5716,7311,ADVERTISING SERVICES,90,Pound Sterling (826),1.000000000,90,Debit,15265671154000103753539,02/07/2021,GLOUCESTER CITY COUNCIL
Gloucester City Council,23UE,Destination Marketing,TI001,Advertising & Publicity,3404,08/06/2021,07/06/2021,FACEBK Y93435FDP2,fb.me/ads,IRL,2,REDACTED,556*********5716,7311,ADVERTISING SERVICES,125,Pound Sterling (826),1.000000000,125,Debit,15265671158325002097340,02/07/2021,GLOUCESTER CITY COUNCIL
Gloucester City Council,23UE,Destination Marketing,TI001,Advertising & Publicity,3404,18/06/2021,17/06/2021,PARTY ON UP,STROUD,GBR,GL5 2AA,REDACTED,556*********5716,5999,MISCELLANEOUS AND RETAIL STORES,47.75,Pound Sterling (826),1.000000000,47.75,Debit,55184221168511698494810,02/07/2021,GLOUCESTER CITY COUNCIL
Gloucester City Council,23UE,Destination Marketing,TI001,Advertising & Publicity,3404,21/06/2021,19/06/2021,FACEBK VETMS5KDP2,fb.me/ads,IRL,2,REDACTED,556*********5716,7311,ADVERTISING SERVICES,90.62,Pound Sterling (826),1.000000000,90.62,Debit,15265671169000487967351,02/07/2021,GLOUCESTER CITY COUNCIL
Gloucester City Council,23UE,Destination Marketing,TI001,Advertising & Publicity,3404,21/06/2021,18/06/2021,Speech House Hotel,Coleford,GBR,GL16 7EL,REDACTED,556*********5716,7011,"LODGING, HOTELS, MOTELS, RESORTS",160,Pound Sterling (826),1.000000000,160,Debit,05371341169323126939033,02/07/2021,GLOUCESTER CITY COUNCIL
Gloucester City Council,23UE,Destination Marketing,TI001,Advertising & Publicity,3404,23/06/2021,23/06/2021,PADDLE.NET* SNAPWIDGET,London,,NN18 8JG,REDACTED,556*********5716,5818,DIGITAL GOODS - MULTI-CATEGORY,5.5,Pound Sterling (826),1.000000000,5.5,Debit,05184891174035679106166,02/07/2021,GLOUCESTER CITY COUNCIL
Gloucester City Council,23UE,Destination Marketing,TI001,Advertising & Publicity,3404,30/06/2021,29/06/2021,GOOGLE ADS1175876893,Dublin,IRL,8QQ7+WG,REDACTED,556*********5716,7311,ADVERTISING SERVICES,211.34,Pound Sterling (826),1.000000000,211.34,Debit,15265671180001305534022,02/07/2021,GLOUCESTER CITY COUNCIL
Gloucester City Council,23UE,Destination Marketing,TI001,Advertising & Publicity,3404,01/07/2021,30/06/2021,FACEBK TS44E3K242,fb.me/ads,IRL,2,REDACTED,556*********5716,7311,ADVERTISING SERVICES,10,Pound Sterling (826),1.000000000,10,Debit,15265671181000409996821,02/07/2021,GLOUCESTER CITY COUNCIL
Gloucester City Council,23UE,Destination Marketing,TI001,Advertising & Publicity,3404,02/07/2021,01/07/2021,EMAIL BLASTER,NORTHANTS,GBR,NN12 8TA,REDACTED,556*********5716,5045,"COMPUTERS,COMPUTER PERIPHERAL EQUIPMENT, SOFTWARE",15.59,Pound Sterling (826),1.000000000,15.59,Debit,55184221182541833079244,02/07/2021,GLOUCESTER CITY COUNCIL
